[Event "Titled Tuesday Blitz April 25 Early 2023"]
[White "Lima, Kleyton Alcantara"]
[Black "Ashraf, Artin"]
[WhiteFideId "22718397"]
[BlackFideId "22514805"]
[WhiteElo "2009"]
[BlackElo "2188"]
[Result "0-1"]
[Round "01"]
[TimeControl "180+2"]
[Date "2023.04.25"]
[WhiteClock "0:00:07"]
[BlackClock "0:00:07"]

1. e4 {[%clk 0:02:28]}  e5 {[%clk 0:02:54]} 2. Nf3 {[%clk 0:02:27]}  Nc6 {[%clk 0:02:54]} 3. d4 {[%clk 0:02:26]}  exd4 {[%clk 0:02:50]} 4. Nxd4 {[%clk 0:02:27]}  Bc5 {[%clk 0:02:40]} 5. Nxc6 {[%clk 0:02:26]}  Qf6 {[%clk 0:02:38]} 6. Qf3 {[%clk 0:02:27]}  Qxf3 {[%clk 0:02:30]} 7. gxf3 {[%clk 0:02:28]}  dxc6 {[%clk 0:02:29]} 8. Nc3 {[%clk 0:02:26]}  Ne7 {[%clk 0:02:26]} 9. Be3 {[%clk 0:02:26]}  Bb6 {[%clk 0:02:22]} 10. O-O-O {[%clk 0:02:24]}  Be6 {[%clk 0:02:21]} 11. Rg1 {[%clk 0:02:22]}  O-O {[%clk 0:02:20]} 12. f4 {[%clk 0:02:17]}  f5 {[%clk 0:02:18]} 13. e5 {[%clk 0:02:11]}  Nd5 {[%clk 0:02:10]} 14. Nxd5 {[%clk 0:02:11]}  cxd5 {[%clk 0:02:08]} 15. Bxb6 {[%clk 0:02:11]}  axb6 {[%clk 0:02:07]} 16. a3 {[%clk 0:02:09]}  Ra4 {[%clk 0:02:07]} 17. c4 {[%clk 0:01:59]}  dxc4 {[%clk 0:02:04]} 18. Rd4 {[%clk 0:01:49]}  c5 {[%clk 0:02:00]} 19. Rd6 {[%clk 0:01:48]}  Re8 {[%clk 0:01:24]} 20. Rg3 {[%clk 0:01:44]}  b5 {[%clk 0:01:19]} 21. Rb6 {[%clk 0:01:39]}  b4 {[%clk 0:00:31]} 22. Rxe6 {[%clk 0:01:22]}  Rxe6 {[%clk 0:00:32]} 23. Bxc4 {[%clk 0:01:21]}  Kf7 {[%clk 0:00:30]} 24. axb4 {[%clk 0:01:04]}  Rxb4 {[%clk 0:00:19]} 25. Bxe6+ {[%clk 0:01:03]}  Kxe6 {[%clk 0:00:20]} 26. Rxg7 {[%clk 0:01:03]}  Rxf4 {[%clk 0:00:20]} 27. Rxb7 {[%clk 0:00:55]}  Rxf2 {[%clk 0:00:20]} 28. Rxh7 {[%clk 0:00:55]}  Kxe5 {[%clk 0:00:20]} 29. Rh3 {[%clk 0:00:51]}  f4 {[%clk 0:00:18]} 30. b3 {[%clk 0:00:51]}  Ke4 {[%clk 0:00:15]} 31. Kd1 {[%clk 0:00:48]}  f3 {[%clk 0:00:11]} 32. Rh8 {[%clk 0:00:30]}  Rb2 {[%clk 0:00:10]} 33. Ke1 {[%clk 0:00:23]}  Rxb3 {[%clk 0:00:08]} 34. Re8+ {[%clk 0:00:24]}  Kd3 {[%clk 0:00:08]} 35. Rh8 {[%clk 0:00:24]}  Rb2 {[%clk 0:00:06]} 36. Rd8+ {[%clk 0:00:20]}  Kc3 {[%clk 0:00:06]} 37. h4 {[%clk 0:00:19]}  c4 {[%clk 0:00:06]} 38. h5 {[%clk 0:00:18]}  Rh2 {[%clk 0:00:07]} 39. Rf8 {[%clk 0:00:15]}  Rh1+ {[%clk 0:00:07]} 40. Kf2 {[%clk 0:00:15]}  Rxh5 {[%clk 0:00:08]} 41. Rxf3+ {[%clk 0:00:08]}  Kd2 {[%clk 0:00:08]} 42. Rf8 {[%clk 0:00:08]}  Rd5 {[%clk 0:00:07]} 43. Ra8 {[%clk 0:00:07]}  c3 {[%clk 0:00:07]} 0-1


[Site "https://www.chess.com"]

[Event "Titled Tuesday Blitz April 25 Early 2023"]
[White "Gunina, Valentina"]
[Black "Dwilewicz, Katarzyna"]
[WhiteFideId "4167570"]
[BlackFideId "1148486"]
[WhiteElo "2352"]
[BlackElo "2065"]
[Result "1-0"]
[Round "01"]
[TimeControl "180+2"]
[Date "2023.04.25"]
[WhiteClock "0:00:18"]
[BlackClock "0:00:04"]

1. d4 {[%clk 0:02:57]}  d5 {[%clk 0:02:59]} 2. c4 {[%clk 0:02:57]}  dxc4 {[%clk 0:02:57]} 3. Nf3 {[%clk 0:02:56]}  Nf6 {[%clk 0:02:57]} 4. e3 {[%clk 0:02:56]}  Bg4 {[%clk 0:02:58]} 5. Bxc4 {[%clk 0:02:56]}  e6 {[%clk 0:02:58]} 6. O-O {[%clk 0:02:54]}  Be7 {[%clk 0:02:57]} 7. Nc3 {[%clk 0:02:54]}  O-O {[%clk 0:02:57]} 8. h3 {[%clk 0:02:54]}  Bh5 {[%clk 0:02:56]} 9. Re1 {[%clk 0:02:54]}  c5 {[%clk 0:02:56]} 10. g4 {[%clk 0:02:37]}  Bg6 {[%clk 0:02:55]} 11. Ne5 {[%clk 0:02:38]}  a6 {[%clk 0:02:41]} 12. dxc5 {[%clk 0:02:20]}  Bxc5 {[%clk 0:02:15]} 13. Qxd8 {[%clk 0:02:09]}  Rxd8 {[%clk 0:02:15]} 14. Nxg6 {[%clk 0:02:09]}  hxg6 {[%clk 0:02:15]} 15. g5 {[%clk 0:01:34]}  Nfd7 {[%clk 0:01:53]} 16. a3 {[%clk 0:01:32]}  Nc6 {[%clk 0:01:49]} 17. b4 {[%clk 0:01:31]}  Be7 {[%clk 0:01:45]} 18. Ne4 {[%clk 0:01:31]}  Rac8 {[%clk 0:01:38]} 19. Be2 {[%clk 0:01:27]}  Nde5 {[%clk 0:01:37]} 20. Bb2 {[%clk 0:01:21]}  Nd3 {[%clk 0:01:36]} 21. Bxd3 {[%clk 0:01:21]}  Rxd3 {[%clk 0:01:36]} 22. Red1 {[%clk 0:01:22]}  Rcd8 {[%clk 0:01:28]} 23. Rxd3 {[%clk 0:01:20]}  Rxd3 {[%clk 0:01:28]} 24. Rc1 {[%clk 0:01:15]}  Rb3 {[%clk 0:01:16]} 25. Rc2 {[%clk 0:01:15]}  a5 {[%clk 0:01:04]} 26. Nd2 {[%clk 0:00:53]}  Rd3 {[%clk 0:01:03]} 27. b5 {[%clk 0:00:53]}  Na7 {[%clk 0:00:51]} 28. a4 {[%clk 0:00:53]}  Bxg5 {[%clk 0:00:49]} 29. Nc4 {[%clk 0:00:45]}  Bd8 {[%clk 0:00:37]} 30. Bd4 {[%clk 0:00:45]}  b6 {[%clk 0:00:25]} 31. Kf1 {[%clk 0:00:37]}  f6 {[%clk 0:00:17]} 32. Ke2 {[%clk 0:00:36]}  Rb3 {[%clk 0:00:18]} 33. Nxb6 {[%clk 0:00:36]}  e5 {[%clk 0:00:14]} 34. Bc5 {[%clk 0:00:36]}  Kf7 {[%clk 0:00:11]} 35. Rd2 {[%clk 0:00:31]}  Bxb6 {[%clk 0:00:06]} 36. Bxb6 {[%clk 0:00:31]}  Nc8 {[%clk 0:00:07]} 37. Bxa5 {[%clk 0:00:31]}  Ra3 {[%clk 0:00:06]} 38. b6 {[%clk 0:00:19]}  Rb3 {[%clk 0:00:03]} 39. Rd7+ {[%clk 0:00:19]}  Ke6 {[%clk 0:00:03]} 40. Rc7 {[%clk 0:00:19]}  Nxb6 {[%clk 0:00:03]} 41. Rc6+ {[%clk 0:00:19]}  Kf5 {[%clk 0:00:02]} 42. Rxb6 {[%clk 0:00:19]}  Ra3 {[%clk 0:00:03]} 43. Rb4 {[%clk 0:00:19]}  Ra2+ {[%clk 0:00:03]} 44. Kf3 {[%clk 0:00:20]}  g5 {[%clk 0:00:04]} 45. Bb6 {[%clk 0:00:18]} 1-0


[Site "https://www.chess.com"]

[Event "Titled Tuesday Blitz April 25 Early 2023"]
[White "Harshavardhan G B"]
[Black "Kopczynski, Michal"]
[WhiteFideId "25059009"]
[BlackFideId "1124200"]
[WhiteElo "2323"]
[BlackElo "2212"]
[Result "1-0"]
[Round "01"]
[TimeControl "180+2"]
[Date "2023.04.25"]
[WhiteClock "0:00:51"]
[BlackClock "0:01:28"]

1. Nf3 {[%clk 0:02:57]}  d6 {[%clk 0:02:59]} 2. d4 {[%clk 0:02:56]}  g6 {[%clk 0:02:59]} 3. c4 {[%clk 0:02:56]}  Bg7 {[%clk 0:03:00]} 4. Nc3 {[%clk 0:02:56]}  Nf6 {[%clk 0:03:00]} 5. e4 {[%clk 0:02:56]}  O-O {[%clk 0:03:01]} 6. h3 {[%clk 0:02:56]}  c5 {[%clk 0:02:58]} 7. d5 {[%clk 0:02:55]}  e6 {[%clk 0:02:59]} 8. Bd3 {[%clk 0:02:55]}  exd5 {[%clk 0:02:59]} 9. exd5 {[%clk 0:02:55]}  Re8+ {[%clk 0:02:58]} 10. Be3 {[%clk 0:02:55]}  Na6 {[%clk 0:02:55]} 11. O-O {[%clk 0:02:55]}  Nc7 {[%clk 0:02:55]} 12. Qd2 {[%clk 0:02:53]}  a6 {[%clk 0:02:55]} 13. a4 {[%clk 0:02:52]}  Rb8 {[%clk 0:02:55]} 14. Bh6 {[%clk 0:02:49]}  b5 {[%clk 0:02:48]} 15. Bxg7 {[%clk 0:02:48]}  Kxg7 {[%clk 0:02:49]} 16. axb5 {[%clk 0:02:44]}  axb5 {[%clk 0:02:49]} 17. cxb5 {[%clk 0:02:27]}  Bd7 {[%clk 0:02:41]} 18. Rfe1 {[%clk 0:01:50]}  Rxe1+ {[%clk 0:02:38]} 19. Rxe1 {[%clk 0:01:30]}  Nxb5 {[%clk 0:02:36]} 20. Bxb5 {[%clk 0:01:29]}  Bxb5 {[%clk 0:02:37]} 21. Ng5 {[%clk 0:01:26]}  Bc4 {[%clk 0:02:15]} 22. Nge4 {[%clk 0:01:15]}  Ne8 {[%clk 0:01:56]} 23. Nd1 {[%clk 0:01:10]}  Qh4 {[%clk 0:01:46]} 24. Qc3+ {[%clk 0:01:08]}  Kf8 {[%clk 0:01:34]} 25. Qh8+ {[%clk 0:01:02]}  Ke7 {[%clk 0:01:33]} 26. Nf6+ {[%clk 0:01:00]}  Kd8 {[%clk 0:01:29]} 27. Qxe8+ {[%clk 0:00:50]}  Kc7 {[%clk 0:01:29]} 28. Qc6+ {[%clk 0:00:51]}  Kd8 {[%clk 0:01:28]} 29. Re8# {[%clk 0:00:51]} 1-0


[Site "https://www.chess.com"]

[Event "Titled Tuesday Blitz April 25 Early 2023"]
[White "krucki03"]
[Black "Bryakin, Mikhail"]
[BlackFideId "4165314"]
[WhiteElo "2412"]
[BlackElo "2447"]
[Result "0-1"]
[Round "01"]
[TimeControl "180+2"]
[Date "2023.04.25"]
[WhiteClock "0:00:05"]
[BlackClock "0:00:04"]

1. e4 {[%clk 0:02:54]}  c5 {[%clk 0:02:56]} 2. Nf3 {[%clk 0:02:52]}  Nc6 {[%clk 0:02:53]} 3. d4 {[%clk 0:02:49]}  cxd4 {[%clk 0:02:54]} 4. Nxd4 {[%clk 0:02:50]}  Nf6 {[%clk 0:02:52]} 5. Nc3 {[%clk 0:02:50]}  h5 {[%clk 0:02:50]} 6. Bc4 {[%clk 0:02:39]}  Ne5 {[%clk 0:02:35]} 7. Bb3 {[%clk 0:02:35]}  d6 {[%clk 0:02:32]} 8. h3 {[%clk 0:02:26]}  e6 {[%clk 0:02:31]} 9. f4 {[%clk 0:02:22]}  Ng6 {[%clk 0:02:31]} 10. Be3 {[%clk 0:02:15]}  Be7 {[%clk 0:02:29]} 11. Qd2 {[%clk 0:02:13]}  a6 {[%clk 0:02:29]} 12. O-O-O {[%clk 0:02:10]}  Qa5 {[%clk 0:02:21]} 13. Kb1 {[%clk 0:02:01]}  Bd7 {[%clk 0:02:18]} 14. Rhg1 {[%clk 0:01:53]}  h4 {[%clk 0:02:18]} 15. Rge1 {[%clk 0:01:47]}  Rc8 {[%clk 0:02:13]} 16. f5 {[%clk 0:01:34]}  exf5 {[%clk 0:01:54]} 17. exf5 {[%clk 0:01:35]}  Ne5 {[%clk 0:01:54]} 18. Bf4 {[%clk 0:01:35]}  O-O {[%clk 0:01:35]} 19. Nd5 {[%clk 0:01:08]}  Qd8 {[%clk 0:01:32]} 20. Nxe7+ {[%clk 0:01:08]}  Qxe7 {[%clk 0:01:32]} 21. Nf3 {[%clk 0:01:09]}  Bxf5 {[%clk 0:01:25]} 22. Nxe5 {[%clk 0:01:08]}  Ne4 {[%clk 0:01:10]} 23. Rxe4 {[%clk 0:00:58]}  Bxe4 {[%clk 0:01:11]} 24. Nd3 {[%clk 0:00:58]}  d5 {[%clk 0:01:08]} 25. Qe3 {[%clk 0:00:51]}  Rfe8 {[%clk 0:00:54]} 26. Qd4 {[%clk 0:00:48]}  Bxg2 {[%clk 0:00:42]} 27. Rg1 {[%clk 0:00:43]}  Qe4 {[%clk 0:00:42]} 28. Qf2 {[%clk 0:00:32]}  Bxh3 {[%clk 0:00:41]} 29. a3 {[%clk 0:00:24]}  Bf5 {[%clk 0:00:33]} 30. Qxh4 {[%clk 0:00:18]}  Rc4 {[%clk 0:00:26]} 31. Re1 {[%clk 0:00:15]}  Qxe1+ {[%clk 0:00:08]} 32. Nxe1 {[%clk 0:00:08]}  Rce4 {[%clk 0:00:06]} 33. Nd3 {[%clk 0:00:06]}  Be6 {[%clk 0:00:07]} 34. Qg5 {[%clk 0:00:05]}  f6 {[%clk 0:00:06]} 35. Qg6 {[%clk 0:00:04]}  Bf7 {[%clk 0:00:07]} 36. Qg3 {[%clk 0:00:05]}  b5 {[%clk 0:00:07]} 37. Bd6 {[%clk 0:00:04]}  R8e6 {[%clk 0:00:07]} 38. Nb4 {[%clk 0:00:03]}  Re1+ {[%clk 0:00:03]} 39. Ka2 {[%clk 0:00:03]}  R1e3 {[%clk 0:00:04]} 40. Qf4 {[%clk 0:00:03]}  R3e4 {[%clk 0:00:04]} 41. Qh2 {[%clk 0:00:03]}  Re2 {[%clk 0:00:04]} 42. Qg3 {[%clk 0:00:04]}  R2e3 {[%clk 0:00:05]} 43. Qg1 {[%clk 0:00:04]}  Re1 {[%clk 0:00:05]} 44. Qc5 {[%clk 0:00:04]}  a5 {[%clk 0:00:04]} 45. Nxd5 {[%clk 0:00:03]}  a4 {[%clk 0:00:05]} 46. Ne7+ {[%clk 0:00:03]}  Rxe7 {[%clk 0:00:05]} 47. Bxf7+ {[%clk 0:00:03]}  Rxf7 {[%clk 0:00:05]} 48. Qc8+ {[%clk 0:00:03]}  Kh7 {[%clk 0:00:06]} 49. Qh3+ {[%clk 0:00:03]}  Kg8 {[%clk 0:00:07]} 50. Qc8+ {[%clk 0:00:03]}  Kh7 {[%clk 0:00:06]} 51. Qh3+ {[%clk 0:00:03]}  Kg8 {[%clk 0:00:06]} 52. Qd3 {[%clk 0:00:04]}  Re6 {[%clk 0:00:06]} 53. Qd2 {[%clk 0:00:03]}  g5 {[%clk 0:00:05]} 54. Qd5 {[%clk 0:00:04]}  Re2 {[%clk 0:00:04]} 55. Qxb5 {[%clk 0:00:03]}  Rxc2 {[%clk 0:00:04]} 56. Qe8+ {[%clk 0:00:03]}  Kg7 {[%clk 0:00:05]} 57. Qe4 {[%clk 0:00:04]}  Rc1 {[%clk 0:00:04]} 58. Qxa4 {[%clk 0:00:04]}  Rb7 {[%clk 0:00:03]} 59. Bb4 {[%clk 0:00:04]}  Rcc7 {[%clk 0:00:03]} 60. Bc3 {[%clk 0:00:04]}  Kg6 {[%clk 0:00:03]} 61. Qe4+ {[%clk 0:00:04]}  Kg7 {[%clk 0:00:02]} 62. Qf5 {[%clk 0:00:05]}  Kf7 {[%clk 0:00:03]} 63. Qxf6+ {[%clk 0:00:05]}  Ke8 {[%clk 0:00:04]} 0-1


[Site "https://www.chess.com"]

[Event "Titled Tuesday Blitz April 25 Early 2023"]
[White "Halkias, Stelios"]
[Black "Gurevich, Dmitry"]
[WhiteFideId "4201809"]
[BlackFideId "2000407"]
[WhiteElo "2451"]
[BlackElo "2506"]
[Result "0-1"]
[Round "01"]
[TimeControl "180+2"]
[Date "2023.04.25"]
[WhiteClock "0:00:02"]
[BlackClock "0:00:24"]

1. Nf3 {[%clk 0:02:59]}  Nf6 {[%clk 0:02:59]} 2. c4 {[%clk 0:02:58]}  c5 {[%clk 0:02:56]} 3. Nc3 {[%clk 0:02:58]}  b6 {[%clk 0:02:56]} 4. g3 {[%clk 0:02:57]}  Bb7 {[%clk 0:02:56]} 5. Bg2 {[%clk 0:02:58]}  g6 {[%clk 0:02:56]} 6. O-O {[%clk 0:02:58]}  Bg7 {[%clk 0:02:56]} 7. b3 {[%clk 0:02:59]}  d5 {[%clk 0:02:55]} 8. e3 {[%clk 0:02:46]}  Nc6 {[%clk 0:02:47]} 9. Bb2 {[%clk 0:02:32]}  O-O {[%clk 0:02:42]} 10. Nxd5 {[%clk 0:02:31]}  Nxd5 {[%clk 0:02:42]} 11. Bxg7 {[%clk 0:02:32]}  Kxg7 {[%clk 0:02:41]} 12. cxd5 {[%clk 0:02:31]}  Qxd5 {[%clk 0:02:41]} 13. d4 {[%clk 0:02:30]}  Rfd8 {[%clk 0:02:32]} 14. Nd2 {[%clk 0:01:36]}  Qd7 {[%clk 0:02:08]} 15. d5 {[%clk 0:01:32]}  Nb4 {[%clk 0:02:00]} 16. e4 {[%clk 0:01:31]}  e6 {[%clk 0:02:00]} 17. a3 {[%clk 0:01:07]}  Na6 {[%clk 0:01:55]} 18. Bh3 {[%clk 0:00:52]}  Qd6 {[%clk 0:01:51]} 19. Nc4 {[%clk 0:00:51]}  Qf8 {[%clk 0:01:45]} 20. Ne3 {[%clk 0:00:33]}  Nc7 {[%clk 0:01:36]} 21. Bg2 {[%clk 0:00:32]}  exd5 {[%clk 0:01:28]} 22. exd5 {[%clk 0:00:32]}  Qd6 {[%clk 0:01:22]} 23. Nc4 {[%clk 0:00:32]}  Qf6 {[%clk 0:01:22]} 24. d6 {[%clk 0:00:32]}  Bxg2 {[%clk 0:01:19]} 25. Kxg2 {[%clk 0:00:20]}  Nb5 {[%clk 0:01:15]} 26. d7 {[%clk 0:00:16]}  Qc6+ {[%clk 0:01:10]} 27. Qf3 {[%clk 0:00:13]}  Qxf3+ {[%clk 0:01:09]} 28. Kxf3 {[%clk 0:00:13]}  Nd4+ {[%clk 0:01:08]} 29. Kg2 {[%clk 0:00:12]}  Nxb3 {[%clk 0:01:08]} 30. Rfd1 {[%clk 0:00:12]}  Nd4 {[%clk 0:01:08]} 31. Ne5 {[%clk 0:00:10]}  f6 {[%clk 0:01:07]} 32. Nf3 {[%clk 0:00:10]}  Rxd7 {[%clk 0:01:07]} 33. Nxd4 {[%clk 0:00:11]}  Rxd4 {[%clk 0:01:05]} 34. Rxd4 {[%clk 0:00:09]}  cxd4 {[%clk 0:01:05]} 35. Rc1 {[%clk 0:00:10]}  Rf8 {[%clk 0:01:02]} 36. Rc6 {[%clk 0:00:08]}  Rd8 {[%clk 0:00:58]} 37. Kf1 {[%clk 0:00:08]}  d3 {[%clk 0:00:55]} 38. Ke1 {[%clk 0:00:09]}  d2+ {[%clk 0:00:55]} 39. Kd1 {[%clk 0:00:09]}  Rd7 {[%clk 0:00:55]} 40. a4 {[%clk 0:00:09]}  Kf7 {[%clk 0:00:54]} 41. a5 {[%clk 0:00:09]}  bxa5 {[%clk 0:00:54]} 42. Ra6 {[%clk 0:00:09]}  f5 {[%clk 0:00:51]} 43. Rxa5 {[%clk 0:00:08]}  Kf6 {[%clk 0:00:47]} 44. f4 {[%clk 0:00:08]}  Kg7 {[%clk 0:00:47]} 45. Ra6 {[%clk 0:00:08]}  Kh6 {[%clk 0:00:46]} 46. h3 {[%clk 0:00:07]}  Rd3 {[%clk 0:00:37]} 47. g4 {[%clk 0:00:07]}  Rxh3 {[%clk 0:00:30]} 48. gxf5 {[%clk 0:00:07]}  Rf3 {[%clk 0:00:28]} 49. fxg6 {[%clk 0:00:06]}  hxg6 {[%clk 0:00:27]} 50. Rxa7 {[%clk 0:00:05]}  Rxf4 {[%clk 0:00:28]} 51. Kxd2 {[%clk 0:00:05]}  Re4 {[%clk 0:00:27]} 52. Kd3 {[%clk 0:00:04]}  Re8 {[%clk 0:00:26]} 53. Ra1 {[%clk 0:00:04]}  g5 {[%clk 0:00:25]} 54. Kd2 {[%clk 0:00:02]}  Kh5 {[%clk 0:00:24]} 55. Rh1+ {[%clk 0:00:01]}  Kg4 {[%clk 0:00:24]} 56. Rg1+ {[%clk 0:00:01]}  Kf4 {[%clk 0:00:24]} 57. Rf1+ {[%clk 0:00:02]}  Kg3 {[%clk 0:00:25]} 58. Rg1+ {[%clk 0:00:02]}  Kh4 {[%clk 0:00:25]} 59. Rh1+ {[%clk 0:00:03]}  Kg4 {[%clk 0:00:25]} 60. Rg1+ {[%clk 0:00:03]}  Kf5 {[%clk 0:00:25]} 61. Rf1+ {[%clk 0:00:04]}  Kg6 {[%clk 0:00:25]} 62. Re1 {[%clk 0:00:04]}  Rxe1 {[%clk 0:00:24]} 63. Kxe1 {[%clk 0:00:04]}  Kh5 {[%clk 0:00:24]} 64. Kf2 {[%clk 0:00:03]}  Kh4 {[%clk 0:00:24]} 65. Kf3 {[%clk 0:00:02]}  Kh3 {[%clk 0:00:24]} 0-1


[Site "https://www.chess.com"]

[Event "Titled Tuesday Blitz April 25 Early 2023"]
[White "Starozhilov, Leonid"]
[Black "Bas Mas, Jose Joaquin"]
[WhiteFideId "14106752"]
[BlackFideId "22219064"]
[WhiteElo "2352"]
[BlackElo "2233"]
[Result "1/2-1/2"]
[Round "01"]
[TimeControl "180+2"]
[Date "2023.04.25"]
[WhiteClock "0:00:06"]
[BlackClock "0:00:16"]

1. e4 {[%clk 0:03:00]}  e6 {[%clk 0:02:59]} 2. d4 {[%clk 0:03:00]}  d5 {[%clk 0:03:00]} 3. Nc3 {[%clk 0:03:01]}  Nf6 {[%clk 0:02:59]} 4. Bg5 {[%clk 0:03:01]}  dxe4 {[%clk 0:02:59]} 5. Nxe4 {[%clk 0:03:00]}  Be7 {[%clk 0:03:00]} 6. Nxf6+ {[%clk 0:03:00]}  Bxf6 {[%clk 0:03:00]} 7. Bxf6 {[%clk 0:03:00]}  Qxf6 {[%clk 0:03:01]} 8. Nf3 {[%clk 0:03:00]}  O-O {[%clk 0:03:00]} 9. Be2 {[%clk 0:02:53]}  Nc6 {[%clk 0:02:58]} 10. O-O {[%clk 0:02:52]}  e5 {[%clk 0:02:56]} 11. dxe5 {[%clk 0:02:39]}  Nxe5 {[%clk 0:02:55]} 12. Nxe5 {[%clk 0:02:40]}  Qxe5 {[%clk 0:02:54]} 13. c3 {[%clk 0:02:36]}  Bf5 {[%clk 0:02:47]} 14. Bf3 {[%clk 0:02:33]}  c6 {[%clk 0:02:41]} 15. Re1 {[%clk 0:02:32]}  Qc7 {[%clk 0:02:39]} 16. h3 {[%clk 0:02:24]}  h6 {[%clk 0:02:35]} 17. Qb3 {[%clk 0:02:23]}  Rad8 {[%clk 0:02:30]} 18. Re3 {[%clk 0:02:20]}  Rfe8 {[%clk 0:02:26]} 19. Rae1 {[%clk 0:02:17]}  Rxe3 {[%clk 0:02:25]} 20. Rxe3 {[%clk 0:02:18]}  Be6 {[%clk 0:02:18]} 21. Qc2 {[%clk 0:02:06]}  b6 {[%clk 0:02:09]} 22. a3 {[%clk 0:02:03]}  c5 {[%clk 0:02:08]} 23. Qe2 {[%clk 0:02:00]}  Rd6 {[%clk 0:02:00]} 24. Bg4 {[%clk 0:01:55]}  Bxg4 {[%clk 0:01:56]} 25. Re8+ {[%clk 0:01:49]}  Kh7 {[%clk 0:01:55]} 26. hxg4 {[%clk 0:01:47]}  Qd7 {[%clk 0:01:39]} 27. Qe4+ {[%clk 0:01:43]}  Rg6 {[%clk 0:01:35]} 28. f3 {[%clk 0:01:17]}  Qd1+ {[%clk 0:01:35]} 29. Kh2 {[%clk 0:01:17]}  Qd6+ {[%clk 0:01:36]} 30. Qe5 {[%clk 0:01:05]}  Qxe5+ {[%clk 0:01:32]} 31. Rxe5 {[%clk 0:01:04]}  a5 {[%clk 0:01:21]} 32. Re7 {[%clk 0:01:02]}  Kg8 {[%clk 0:01:20]} 33. a4 {[%clk 0:00:56]}  Rd6 {[%clk 0:01:19]} 34. Rb7 {[%clk 0:00:54]}  g6 {[%clk 0:01:18]} 35. Kg3 {[%clk 0:00:53]}  Kg7 {[%clk 0:01:19]} 36. Kf4 {[%clk 0:00:52]}  Kf6 {[%clk 0:01:18]} 37. Ke4 {[%clk 0:00:45]}  Ke6 {[%clk 0:01:17]} 38. g3 {[%clk 0:00:42]}  g5 {[%clk 0:01:12]} 39. f4 {[%clk 0:00:42]}  Kf6 {[%clk 0:01:09]} 40. f5 {[%clk 0:00:40]}  Kg7 {[%clk 0:01:00]} 41. Ke5 {[%clk 0:00:32]}  Rd3 {[%clk 0:00:59]} 42. Rxb6 {[%clk 0:00:25]}  Rxg3 {[%clk 0:00:59]} 43. f6+ {[%clk 0:00:13]}  Kg6 {[%clk 0:00:59]} 44. Rb8 {[%clk 0:00:13]}  Re3+ {[%clk 0:00:59]} 45. Kd5 {[%clk 0:00:13]}  Kxf6 {[%clk 0:00:55]} 46. Kxc5 {[%clk 0:00:13]}  Re4 {[%clk 0:00:55]} 47. b4 {[%clk 0:00:12]}  Rxg4 {[%clk 0:00:51]} 48. Kb5 {[%clk 0:00:12]}  axb4 {[%clk 0:00:36]} 49. cxb4 {[%clk 0:00:13]}  Rg1 {[%clk 0:00:35]} 50. a5 {[%clk 0:00:13]}  h5 {[%clk 0:00:35]} 51. a6 {[%clk 0:00:13]}  h4 {[%clk 0:00:35]} 52. a7 {[%clk 0:00:14]}  Ra1 {[%clk 0:00:35]} 53. a8=Q {[%clk 0:00:11]}  Rxa8 {[%clk 0:00:35]} 54. Rxa8 {[%clk 0:00:12]}  g4 {[%clk 0:00:35]} 55. Rg8 {[%clk 0:00:08]}  Kf5 {[%clk 0:00:33]} 56. Kc4 {[%clk 0:00:08]}  h3 {[%clk 0:00:33]} 57. b5 {[%clk 0:00:08]}  h2 {[%clk 0:00:33]} 58. Rh8 {[%clk 0:00:08]}  g3 {[%clk 0:00:34]} 59. b6 {[%clk 0:00:08]}  g2 {[%clk 0:00:33]} 60. b7 {[%clk 0:00:08]}  h1=Q {[%clk 0:00:31]} 61. b8=Q {[%clk 0:00:06]}  Qxh8 {[%clk 0:00:16]} 62. Qxh8 {[%clk 0:00:07]}  g1=Q {[%clk 0:00:17]} 63. Qh5+ {[%clk 0:00:06]}  Qg5 {[%clk 0:00:15]} 64. Qxf7+ {[%clk 0:00:06]}  Kg4 {[%clk 0:00:16]} 65. Qd5 {[%clk 0:00:05]}  Qxd5+ {[%clk 0:00:16]} 66. Kxd5 {[%clk 0:00:06]} 1/2-1/2


[Site "https://www.chess.com"]

[Event "Titled Tuesday Blitz April 25 Early 2023"]
[White "KorolDimitriy75"]
[Black "Horton, Andrew P"]
[BlackFideId "424269"]
[WhiteElo "2408"]
[BlackElo "2401"]
[Result "1-0"]
[Round "01"]
[TimeControl "180+2"]
[Date "2023.04.25"]
[WhiteClock "0:00:10"]
[BlackClock "0:00:03"]

1. d4 {[%clk 0:02:58]}  Nf6 {[%clk 0:02:52]} 2. c4 {[%clk 0:02:58]}  e6 {[%clk 0:02:48]} 3. Nc3 {[%clk 0:02:58]}  d5 {[%clk 0:02:48]} 4. Bg5 {[%clk 0:02:57]}  Be7 {[%clk 0:02:28]} 5. cxd5 {[%clk 0:02:57]}  Nxd5 {[%clk 0:02:27]} 6. Bxe7 {[%clk 0:02:56]}  Qxe7 {[%clk 0:02:27]} 7. e4 {[%clk 0:02:56]}  Nxc3 {[%clk 0:02:26]} 8. bxc3 {[%clk 0:02:57]}  O-O {[%clk 0:02:26]} 9. Nf3 {[%clk 0:02:57]}  Rd8 {[%clk 0:02:16]} 10. Be2 {[%clk 0:02:56]}  b6 {[%clk 0:02:14]} 11. O-O {[%clk 0:02:54]}  Bb7 {[%clk 0:02:14]} 12. Qd3 {[%clk 0:02:51]}  c5 {[%clk 0:02:02]} 13. Rad1 {[%clk 0:02:39]}  cxd4 {[%clk 0:01:53]} 14. cxd4 {[%clk 0:02:40]}  Nd7 {[%clk 0:01:52]} 15. Qe3 {[%clk 0:02:29]}  Rac8 {[%clk 0:01:51]} 16. h3 {[%clk 0:02:24]}  h6 {[%clk 0:01:48]} 17. Rfe1 {[%clk 0:02:22]}  Qb4 {[%clk 0:01:46]} 18. Bd3 {[%clk 0:02:09]}  Rc3 {[%clk 0:01:36]} 19. Qf4 {[%clk 0:02:03]}  Rdc8 {[%clk 0:01:21]} 20. Bb1 {[%clk 0:02:00]}  Qe7 {[%clk 0:01:12]} 21. Ne5 {[%clk 0:01:46]}  Nxe5 {[%clk 0:01:10]} 22. Qxe5 {[%clk 0:01:47]}  Qc7 {[%clk 0:01:07]} 23. Qxc7 {[%clk 0:01:18]}  R3xc7 {[%clk 0:01:08]} 24. d5 {[%clk 0:01:18]}  exd5 {[%clk 0:01:06]} 25. exd5 {[%clk 0:01:19]}  g6 {[%clk 0:00:45]} 26. d6 {[%clk 0:01:03]}  Rd7 {[%clk 0:00:44]} 27. Re7 {[%clk 0:01:01]}  Rcd8 {[%clk 0:00:44]} 28. Rxd7 {[%clk 0:00:30]}  Rxd7 {[%clk 0:00:45]} 29. Bc2 {[%clk 0:00:30]}  b5 {[%clk 0:00:40]} 30. f4 {[%clk 0:00:29]}  Kg7 {[%clk 0:00:35]} 31. Kf2 {[%clk 0:00:27]}  Kf6 {[%clk 0:00:35]} 32. Bb3 {[%clk 0:00:27]}  g5 {[%clk 0:00:32]} 33. g3 {[%clk 0:00:26]}  Be4 {[%clk 0:00:26]} 34. Ke3 {[%clk 0:00:25]}  Bf5 {[%clk 0:00:24]} 35. g4 {[%clk 0:00:21]}  Be6 {[%clk 0:00:22]} 36. Ke4 {[%clk 0:00:15]}  gxf4 {[%clk 0:00:19]} 37. Kxf4 {[%clk 0:00:14]}  Bxb3 {[%clk 0:00:17]} 38. axb3 {[%clk 0:00:15]}  Ke6 {[%clk 0:00:18]} 39. Ra1 {[%clk 0:00:12]}  Kxd6 {[%clk 0:00:15]} 40. Ra6+ {[%clk 0:00:11]}  Kc5 {[%clk 0:00:13]} 41. Rxh6 {[%clk 0:00:12]}  Kb4 {[%clk 0:00:13]} 42. h4 {[%clk 0:00:12]}  Kxb3 {[%clk 0:00:12]} 43. h5 {[%clk 0:00:12]}  b4 {[%clk 0:00:12]} 44. Rf6 {[%clk 0:00:11]}  Kc2 {[%clk 0:00:06]} 45. h6 {[%clk 0:00:11]}  b3 {[%clk 0:00:06]} 46. h7 {[%clk 0:00:11]}  Rd8 {[%clk 0:00:05]} 47. Rxf7 {[%clk 0:00:12]}  b2 {[%clk 0:00:05]} 48. Rb7 {[%clk 0:00:12]}  a5 {[%clk 0:00:05]} 49. g5 {[%clk 0:00:12]}  a4 {[%clk 0:00:05]} 50. g6 {[%clk 0:00:13]}  a3 {[%clk 0:00:06]} 51. g7 {[%clk 0:00:13]}  a2 {[%clk 0:00:06]} 52. g8=Q {[%clk 0:00:13]}  Rxg8 {[%clk 0:00:04]} 53. hxg8=Q {[%clk 0:00:14]}  b1=Q {[%clk 0:00:02]} 54. Qg6+ {[%clk 0:00:14]}  Kc1 {[%clk 0:00:03]} 55. Qg1+ {[%clk 0:00:13]}  Kc2 {[%clk 0:00:03]} 56. Qf2+ {[%clk 0:00:14]}  Kc1 {[%clk 0:00:03]} 57. Qe1+ {[%clk 0:00:14]}  Kc2 {[%clk 0:00:03]} 58. Qe2+ {[%clk 0:00:14]}  Kc3 {[%clk 0:00:03]} 59. Qe3+ {[%clk 0:00:12]}  Kc2 {[%clk 0:00:01]} 60. Qe4+ {[%clk 0:00:11]}  Kc3 {[%clk 0:00:02]} 61. Rxb1 {[%clk 0:00:10]}  axb1=Q {[%clk 0:00:03]} 62. Qxb1 {[%clk 0:00:10]} 1-0


[Site "https://www.chess.com"]